Cogmind - Beta 12 @@@ ROGUE MODE // 2023.04.17 @ 00:22:20 Player: Mr Goldstein Result: Destroyed by as-28495 with Assembled Heavy Rifle Performance ------------- Evolutions (1) 500 Regions Visited (5) 1000 Robots Destroyed (0) 0 Value Destroyed (0) 0 Prototype IDs (7) 140 Alien Tech Used (0) 0 Bonus (2985) 2985 TOTAL SCORE: 4625 Bonus ------- Pacifist 200 Follower Combat Kills 185 Met Imprinter 300 Was Imprinted 300 Destroyed Z-Imprinter 1000 Triggered Deep Caves Wall 500 Exposed GOLEM Chamber 500 Cogmind --------- Core Integrity 0/400 Matter 300/300 Energy 98/100 System Corruption 0% Temperature Critical (532) Movement Hovering (52) Location -7/Deep Caves Parts ------- > --- POWER (1) -------- Zionite Light DM Reactor > --- PROPULSION (4) --- Zionite Glidesys I Zionite Glidesys II Zionite Glidesys II > --- UTILITY (2) ------ Experimental Reaction Control System > --- WEAPON (2) ------- Beamcaster > --- INVENTORY (5) ---- Zionite Glidesys I Makeshift Hacking Suite Makeshift Hacking Suite Makeshift Hacking Suite Peak State ------------ > --- POWER ------------ Zionite Light DM Reactor > --- PROPULSION ------- Airjet Zionite Glidesys I Zionite Glidesys II Zionite Glidesys II > --- UTILITY ---------- Zionite Biocell Experimental Reaction Control System > --- WEAPON ----------- Zionite Laser-S Zionite Laser-S > --- INVENTORY -------- Light Fission Core Experimental Heat Sink Zionite Light Carapace Improved Datajack [Rating: 63] Favorites ----------- Power Zionite Light DM Reactor Power Core Light Fission Core Reactor Zionite Light DM Reactor Propulsion Zionite Glidesys II Hover Unit Zionite Glidesys II Utility Experimental Reaction Control System Device Experimental Reaction Control System Storage Zionite Biocell Weapon Zionite Laser-S Energy Gun Zionite Laser-S Slashing Weapon Chainsword Build | -11 -10 -9 -9 -7 -7 ------- Run | Jun Mat Mat Min Zio Dee Slots Evolved 2 | . . 2 . . . Power . | . . . . . . Propulsion 2 | . . 2 . . . Utility . | . . . . . . Weapon . | . . . . . . Parts Attached 15 | . . . . . 15 Power 2 | . . . . . 2 Engine . | . . . . . . Core 1 | . . . . . 1 Reactor 1 | . . . . . 1 Propulsion 5 | . . . . . 5 Treads . | . . . . . . Leg . | . . . . . . Wheel . | . . . . . . Hover 5 | . . . . . 5 Flight . | . . . . . . Utility 4 | . . . . . 4 Device 3 | . . . . . 3 Storage 1 | . . . . . 1 Processor . | . . . . . . Hackware . | . . . . . . Protection . | . . . . . . Artifact . | . . . . . . Weapon 4 | . . . . . 4 Energy Gun 3 | . . . . . 3 Energy Cannon . | . . . . . . Ballistic Gun . | . . . . . . Ballistic Cannon . | . . . . . . Launcher . | . . . . . . Special Weapon . | . . . . . . Impact Weapon . | . . . . . . Slashing Weapon 1 | . . . . . 1 Piercing Weapon . | . . . . . . Special Melee Weapon . | . . . . . . Unidentified Prototypes 7 | . . . . . 7 Parts Lost 5 | . . . . . 5 Power . | . . . . . . Propulsion 1 | . . . . . 1 Utility 2 | . . . . . 2 Weapon 2 | . . . . . 2 Highest Loss Streak 5 | . . . . . 5 To Critical Strikes . | . . . . . . Average Slot Usage (%) 30 | . . . . . 79 Reactor 3 | . . . . . 8 Hover 13 | . . . . . 36 Device 3 | . . . . . 9 Storage 2 | . . . . . 7 Energy Gun 5 | . . . . . 14 Slashing Weapon 1 | . . . . . 3 Naked Turns 890 | . 22 46 46 766 10 Heaviest Build 21 | . . . . . 21 Greatest Support 54 | 3 3 3 3 3 54 Greatest Overweight (x) 1 | . . . . . 1 Average Overweight (x) . | . . . . . . Largest Inventory Capacity 5 | 5 5 5 5 5 5 Average Capacity 5 | 5 5 5 5 5 5 Most Carried 5 | . . . . 5 5 Average Carried 3 | . . . . 3 4 Final Capacity 5 | 5 5 5 5 5 5 Final Carried 4 | . . . . 4 4 Class Distribution -------------------- 69% | Mutant 30% | Scavenger-Mutant Dominant Class ---------------- Mutant | -10/Materials Mutant | -9/Materials Mutant | -9/Mines Mutant | -7/Zion Scavenger-Mutant | -7/Deep Caves Resources | -11 -10 -9 -9 -7 -7 ----------- Run | Jun Mat Mat Min Zio Dee Matter Collected 335 | . . . . 68 267 Remotely . | . . . . . . Salvage Created . | . . . . . . Parts . | . . . . . . Haulers Intercepted . | . . . . . . Recyclers Shooed . | . . . . . . Parts Field Recycled . | . . . . . . Retrieved Matter . | . . . . . . Parts Self-Destructed . | . . . . . . Prevented . | . . . . . . Kills | -11 -10 -9 -9 -7 -7 ------- Run | Jun Mat Mat Min Zio Dee Combat Hostiles Destroyed . | . . . . . . Classes Destroyed . | . . . . . . Best Kill Streak . | . . . . . . Combat Bots Only . | . . . . . . Max Kills in Single Turn . | . . . . . . Gunslinging . | . . . . . . Exploded . | . . . . . . Melee . | . . . . . . Uniques/NPCs Destroyed 1 | . . . . . 1 Z-Imprinter (-7/Deep Caves) Combat | -11 -10 -9 -9 -7 -7 -------- Run | Jun Mat Mat Min Zio Dee Damage Taken 681 | . 111 28 . . 542 Core 512 | . 111 28 . . 373 Absorbed by Shields . | . . . . . . Core Remaining (%) 77 | 100 55 . . . . Volleys Fired 9 | . . . . . 9 Largest 2 | . . . . . 2 Hottest 135 | . . . . . 135 Shots Fired 12 | . . . . . 12 Gun 12 | . . . . . 12 Cannon . | . . . . . . Launcher . | . . . . . . Special . | . . . . . . Kinetic . | . . . . . . Thermal 12 | . . . . . 12 Explosive . | . . . . . . Electromagnetic . | . . . . . . Robot Hit Streak 4 | . . . . . 4 Robot Miss Streak 2 | . . . . . 2 Penetration Max . | . . . . . . Secondary Targets . | . . . . . . Shots Hit Robots 7 | . . . . . 7 Core Hits 1 | . . . . . 1 Critical Kills . | . . . . . . Critical Parts Destroyed . | . . . . . . Critical Strikes . | . . . . . . Melee Attacks . | . . . . . . Impact . | . . . . . . Slashing . | . . . . . . Piercing . | . . . . . . Sneak Attacks . | . . . . . . Combat Hostiles . | . . . . . . Follow-up Attacks . | . . . . . . Damage Inflicted 148 | . . . . . 148 Guns 148 | . . . . . 148 Cannons . | . . . . . . Explosions . | . . . . . . Melee . | . . . . . . Ramming . | . . . . . . Kinetic . | . . . . . . Thermal 148 | . . . . . 148 Explosive . | . . . . . . Electromagnetic . | . . . . . . Impact . | . . . . . . Slashing . | . . . . . . Piercing . | . . . . . . Highest Corruption . | . . . . . . Average Corruption . | . . . . . . Corruption Purged . | . . . . . . Corruption Blocked . | . . . . . . Overload Shots . | . . . . . . Overflow Damage . | . . . . . . Projectiles . | . . . . . . Explosions . | . . . . . . Melee . | . . . . . . Knockbacks . | . . . . . . Impact . | . . . . . . Kinetic . | . . . . . . Secondary . | . . . . . . Self-Inflicted Damage . | . . . . . . Shots . | . . . . . . Rammed . | . . . . . . Targets Rammed . | . . . . . . Kicked . | . . . . . . Crushed . | . . . . . . Highest Temperature 629 | . . . . . 629 Average Temperature 413 | . . . . . 413 Received Heat Transfer 99 | . 63 . . . 36 Effects 5 | . . . . . 5 Interference 1 | . . . . . 1 Short Circuit 1 | . . . . . 1 Damage (minor) 1 | . . . . . 1 Damage (core) 2 | . . . . . 2 Siege Activations . | . . . . . . Robots Corrupted . | . . . . . . Combat Hostiles . | . . . . . . Parts Fried . | . . . . . . Impact Corruptions . | . . . . . . Robots Melted . | . . . . . . Combat Hostiles . | . . . . . . Parts Melted . | . . . . . . Heat Transferred 259 | . . . . . 259 Parts Sabotaged . | . . . . . . Parts Stolen . | . . . . . . Parts Stripped . | . . . . . . Power Chain Reactions . | . . . . . . Missiles Intercepted . | . . . . . . Alert | -11 -10 -9 -9 -7 -7 ------- Run | Jun Mat Mat Min Zio Dee Peak Influence 15 | . . 15 5 . . Initial 5 | . . . 5 . . Average 3 | . . 3 5 . . Maximum Alert Level . | . . . . . . Low Security (%) 100 | 100 100 100 100 . . Level 1 . | . . . . . . Level 2 . | . . . . . . Level 3 . | . . . . . . Level 4 . | . . . . . . Level 5 . | . . . . . . High Security . | . . . . . . Max Security . | . . . . . . Squads Dispatched . | . . . . . . Investigation . | . . . . . . Extermination . | . . . . . . Reinforcement . | . . . . . . Assault . | . . . . . . Garrison . | . . . . . . Intercept . | . . . . . . Searches Triggered . | . . . . . . Construction Impeded . | . . . . . . Haulers Reinforced . | . . . . . . Active Scanning Responses . | . . . . . . Cargo Convoy Interrupts . | . . . . . . Stealth | -11 -10 -9 -9 -7 -7 --------- Run | Jun Mat Mat Min Zio Dee Distress Signals . | . . . . . . Communications Jammed . | . . . . . . Distress Signals . | . . . . . . Times Spotted 29 | . 2 1 . . 26 Peak Tracking Total 24 | . 2 1 . . 24 Tactical Retreats . | . . . . . . Traps | -11 -10 -9 -9 -7 -7 ------- Run | Jun Mat Mat Min Zio Dee Traps Triggered . | . . . . . . Indirectly . | . . . . . . Trap Hack Attempts . | . . . . . . Triggered . | . . . . . . Disarmed . | . . . . . . Reprogrammed . | . . . . . . Reused . | . . . . . . Traps Extracted . | . . . . . . Installed . | . . . . . . Triggered . | . . . . . . Machines | -11 -10 -9 -9 -7 -7 ---------- Run | Jun Mat Mat Min Zio Dee Machines Disabled 2 | . . . . . 2 Max in Single Turn . | . . . . . . Machines Repaired . | . . . . . . Machines Sabotaged . | . . . . . . Overloaded Fab Kills . | . . . . . . Hacking | -11 -10 -9 -9 -7 -7 --------- Run | Jun Mat Mat Min Zio Dee Machines Accessed . | . . . . . . Terminals . | . . . . . . Fabricators . | . . . . . . Repair Stations . | . . . . . . Recycling Units . | . . . . . . Scanalyzers . | . . . . . . Garrison Access . | . . . . . . Total Hacks . | . . . . . . Successful . | . . . . . . Failed . | . . . . . . Catastrophic . | . . . . . . Database Lockouts . | . . . . . . Manual 6 | . . . . 6 . Terminals . | . . . . . . Fabricators . | . . . . . . Repair Stations . | . . . . . . Recycling Units . | . . . . . . Scanalyzers . | . . . . . . Garrison Access . | . . . . . . Terminal Hacks . | . . . . . . Fabricator Hacks . | . . . . . . Repair Station Hacks . | . . . . . . Recycling Unit Hacks . | . . . . . . Scanalyzer . | . . . . . . Garrison Access Hacks . | . . . . . . Unauthorized Hacks . | . . . . . . Terminals . | . . . . . . Fabricators . | . . . . . . Repair Stations . | . . . . . . Recycling Units . | . . . . . . Scanalyzers . | . . . . . . Garrison Access . | . . . . . . Data Cores Recovered . | . . . . . . Used . | . . . . . . Hacking Detections . | . . . . . . Full Trace Events . | . . . . . . Feedback Events . | . . . . . . Feedback Blocked . | . . . . . . Robot Schematics Acquired . | . . . . . . Robots Built . | . . . . . . Authchips . | . . . . . . Time . | . . . . . . Total Robot Build Rating . | . . . . . . Part Schematics Acquired . | . . . . . . Parts Built . | . . . . . . Authchips . | . . . . . . Time . | . . . . . . Total Part Build Rating . | . . . . . . Parts Repaired . | . . . . . . Time . | . . . . . . Parts Recycled . | . . . . . . Recycled Matter . | . . . . . . Retrieved Matter . | . . . . . . Retrieved Components . | . . . . . . Parts Scanalyzed . | . . . . . . Part Schematics Acquired . | . . . . . . Parts Damaged . | . . . . . . Bothacking | -11 -10 -9 -9 -7 -7 ------------ Run | Jun Mat Mat Min Zio Dee Used RIF Installer . | . . . . . . Robots Hacked . | . . . . . . Non-combat . | . . . . . . Combat . | . . . . . . Robot Hacks Applied . | . . . . . . Relay Couplers Released . | . . . . . . Fabnet Peak Effective % . | . . . . . . Robots Rewired . | . . . . . . Allies Hacked . | . . . . . . Hacks Repelled . | . . . . . . Allies | -11 -10 -9 -9 -7 -7 -------- Run | Jun Mat Mat Min Zio Dee Total Allies 12 | . . . . 11 1 Largest Group 11 | . . . . 11 9 Highest-Rated Group 466 | . . . . 463 466 Highest-Rated Ally 119 | . . . . 96 119 Total Orders . | . . . . . . Ally Attacks 131 | . . . . . 131 Total Damage 3300 | . . . . . 3300 Kills 15 | . . . . . 15 Allies Corrupted . | . . . . . . Allies Melted . | . . . . . . Intel | -11 -10 -9 -9 -7 -7 ------- Run | Jun Mat Mat Min Zio Dee Robot Analysis Total . | . . . . . . Derelict Logs Recovered 2 | . . . . 2 . Drone Launches . | . . . . . . Drone Recoveries . | . . . . . . Exploration | -11 -10 -9 -9 -7 -7 ------------- Run | Jun Mat Mat Min Zio Dee Turns Passed 1434 | 11 22 46 46 766 543 Spaces Moved 1788 | 21 43 91 91 1029 513 Core 1290 | 21 43 91 91 1029 15 Treads . | . . . . . . Legs . | . . . . . . Wheels . | . . . . . . Hover 498 | . . . . . 498 Flight . | . . . . . . Fastest Speed 48 | 50 50 50 50 50 48 Average Speed 50 | 50 50 50 50 50 52 Slowest Speed 120 | 50 50 50 50 50 120 Overloaded Moves . | . . . . . . Propulsion Burnouts . | . . . . . . Robots Hopped . | . . . . . . Cave-ins Triggered . | . . . . . . Exploration Rate (%) 37 | 3 13 15 38 86 70 Regions Visited 5 Branch Regions 3 Pre-discovered Areas 3 | . . . . 3 . Known Exits Taken . | . . . . . . Unknown Exits Taken 5 | 1 1 1 1 1 . Scrap Searched 3 | . . . . 3 . Spaces Dug . | . . . . . . Terrain Destroyed . | . . . . . . Melee . | . . . . . . Projectile . | . . . . . . AOE . | . . . . . . Terrain Rammed . | . . . . . . Walls Destroyed . | . . . . . . Machines Disabled . | . . . . . . Actions | -11 -10 -9 -9 -7 -7 --------- Run | Jun Mat Mat Min Zio Dee Total 2296 | 20 42 90 90 1280 774 Wait 465 | . . . . 246 219 Move 1783 | 20 42 90 90 1028 513 Hop . | . . . . . . Pick Up 13 | . . . . 5 8 Fast Attach 9 | . . . . . 9 Attach 6 | . . . . . 6 Detach 2 | . . . . . 2 Swap . | . . . . . . Drop 7 | . . . . 1 6 Fire 9 | . . . . . 9 Melee . | . . . . . . Ram . | . . . . . . Kick . | . . . . . . Crush . | . . . . . . Escape Stasis . | . . . . . . Rewire 2 | . . . . . 2 Trap . | . . . . . . Miscellaneous . | . . . . . . Route ------- -11/Junkyard -10/Materials -9/Materials -9/Mines -7/Zion (discovered 2 exits: [*Dee] / [*Pro]) -7/Deep Caves History --------- Turn | Location | Event 5 | -11/Junkyard | Discovered new exit (range 15) 12 | -11/Junkyard | Entered Materials 26 | -10/Materials | Discovered new exit (range 16) 34 | -10/Materials | Entered another Materials area 34 | -9/Materials | Evolved 2 slots: Propulsion x2 68 | -9/Materials | Discovered new exit (range 11) 80 | -9/Materials | Entered Mines 123 | -9/Mines | A Derelict revealed a hidden shortcut to a safe place 126 | -9/Mines | Entered Zion 142 | -7/Zion | Gained Derelict followers 177 | -7/Zion | Learned location of Warlord (-5) 186 | -7/Zion | Discovered new exit (range 9) 206 | -7/Zion | Given A8's code to call for help 227 | -7/Zion | Learned Factory trap positions 240 | -7/Zion | Learned location of Extension (-4) 305 | -7/Zion | Build established: Mutant 351 | -7/Zion | Received a visual enhancement algorithm 510 | -7/Zion | Imprinted 512 | -7/Zion | Declared Zion's savior 569 | -7/Zion | Given the Hacking Drone Bay 609 | -7/Zion | Acquired unknown access codes intercepted by a Zionite 614 | -7/Zion | Learned location of Quarantine (-3) 771 | -7/Zion | Opened final containment barrier to the Deep Caves 786 | -7/Zion | Enhanced Grunt warped into view, answering call for help 787 | -7/Zion | Enhanced Grunt warped into view, answering call for help 794 | -7/Zion | Discovered new exit (range 5) 795 | -7/Zion | Saw the warning signs outside the Deep Caves entrance 892 | -7/Zion | Entered Deep Caves 892 | -7/Deep Caves | Accompanied by 11 allies 893 | -7/Deep Caves | Met 5H-AD0 963 | -7/Deep Caves | Z-Facility disabled 979 | -7/Deep Caves | Attacked by Z-Imprinter 990 | -7/Deep Caves | Allies destroyed Z-Imprinter 1296 | -7/Deep Caves | Build established: Scavenger-Mutant 1393 | -7/Deep Caves | Spotted as-62682 1420 | -7/Deep Caves | Core integrity fell below 50% 1420 | -7/Deep Caves | Exposed GOLEM chamber 1421 | -7/Deep Caves | Triggered Deep Caves wall 1435 | -7/Deep Caves | Core integrity fell below 20% 1435 | -7/Deep Caves | Destroyed by as-28495 with Assembled Heavy Rifle Last Messages --------------- 01421_ Beamcaster temporarily disabled. 01421_ HV Slug penetrates as-62682. 01423_ Overheating: Broken Phase Shifter damaged (-12). 01423_ 5H-AD0: "Argh..." 01423_ 5H-AD0 suddenly disappears in plain sight. 01424_ Knocked back. 01425_ Overheating: Core damaged (-56). 01426_ Enhanced Grunt destroyed. 01429_ S3-R89(g) destroyed. 01431_ Attempting to rewire 0M-M0M(g). 01431_ 0M-M0M(g) is broken beyond repair. 01432_ S7-L9K(M) destroyed. 01432_ Attempting to rewire 0M-M0M(g). 01432_ 0M-M0M(g) is broken beyond repair. 01432_ Airjet destroyed. 01433_ Broken Phase Shifter destroyed. 01434_ GOLEM Unit springs to life. 01434_ Acquired 5 matter. 01435_ Overheating: Core damaged (-72). 01435_ as-73390 GOLEM Unit beginning Prototype Leg integration. Map ----- +----------------------------------------------------+ | ??????????????????????????????????# | | ??????????????????????????????????# | | ??????????????????????????????????# ## | | ??????????????????????????????????# ##### | | ??????????????????????????????????# ##???## | | ?????????????????????????????????## #?????# | | ??????????????????????????????#### #????## | | ?????????????????????????????## ##???## | | ??????????????? = ???? ??# ##????# | | ????????????? == ?# ##????## | | ?????????? ?## ###????## | | ???????? * #?#####????### | | ????????? * #??????????# | | ?????????" ab * ##?????????# | | ?????????" aa ;??????????# # | | ?????????" a * g #?????????## ## | | ????????"" a a * * ##???????## ## | | ????????" aa * #??????## | | ????????# a a #??????# | | ????????" l aa ######## | | ????????" [aa !! %! ## ## | | ????????" G a[ ]%!! # | | ????????""" *=%] # | | ????????" a** *! g # | | ????????"" ! % ## ##### | | ????????" g! @ ;# ###???? | | ????????"" ;## ##?????? | | ????????" # # ;### #??????? | | ????????" #### ## ## ###?#### #??????? | | ????????""" ##???# ## ####??????## ##??????? | | ?????????" ?????###? #??????????####???????? | | ?????????####??????????#??????????????????????? | | | | | | | | | | | | | | | | | | | | | | | | | | | | | | | | | | | | | +----------------------------------------------------+ Best States ------------- Heat Dissipation 28 Energy Generation 27 Energy Capacity 700 Matter Stores 300 Matter Capacity 300 Sight Range 16 Terrain Scan Density 10 Phase Shifting 5 Evasion (%) 59 Item Schematics ----------------- None Robot Schematics ------------------ None Fabricated ------------ Nothing Alien Tech Used ----------------- None Achievements -------------- None Challenges ------------ None Game ------ Seed CannonParticleMount Manual? 0 Play Time 00:20:24 Cumulative 116.7 hours Start 2023.04.17 @ 00:03:23 End 2023.04.17 @ 00:22:20 Sessions 1 Manual Loads 0 Difficulty Rogue Special Mode None Game No. 321 Rogue 321 Adventurer 0 Explorer 0 Win Type - Total 4 Types 4/0/0/0/0/0/0/0/0 Lore% 58 Gallery% 60 Achievement% 53 Wizard Run 0 Options --------- ASCII 0 Keyboard 0 Movement Mouse Keybinds 0 Fullscreen 1 Font 12/Smallcaps Map View 83x54 Tactical HUD 1 Map Filters NONE Filters NONE Steam 1 RUN: f1c7c82d-698f-43f7-a242-d9e2f2dd4ad2